bitfinex/quotes_SOLUSD_20240705
["timestamp","ask_amount","ask_price","bid_price","bid_amount"]
[1720197433634,0.50100726,135.78,135.65,106.71906471]
[1720197433830,0.50100726,135.78,135.66,100.0]
[1720197434443,0.50100726,135.78,135.65,11.52603638]
[1720197434741,0.17,135.77,135.66,20.0]
[1720197434909,0.17,135.77,135.66,100.0]
[1720197435408,0.17,135.77,135.64,120.0]
[1720197435607,0.17,135.77,135.64,4.90115026]
[1720197435608,22.71010726,135.76,135.64,4.90115026]
[1720197435831,29.5436,135.74,135.61,0.1]
[1720197436132,22.1762,135.72,135.61,0.1]
[1720197436442,22.67720726,135.72,135.61,0.1]
[1720197436620,22.1762,135.72,135.61,4.98231454]
[1720197436815,0.67100726,135.71,135.61,4.98231454]
[1720197437128,22.1762,135.72,135.61,4.98231454]
[1720197437329,0.67100726,135.71,135.61,4.98231454]
[1720197437831,0.50100726,135.71,135.61,4.98231454]
[1720197438256,22.1762,135.72,135.61,4.98231454]
[1720197438415,22.1762,135.72,135.61,104.98231454]
[1720197438416,0.50100726,135.71,135.61,104.98231454]
[1720197438619,22.1762,135.72,135.62,20.0]
[1720197438814,0.50100726,135.71,135.62,20.0]
[1720197439042,0.67100726,135.71,135.62,20.0]
[1720197439258,0.67100726,135.71,135.61,4.98231454]
[1720197439449,0.67100726,135.71,135.62,0.17]
[1720197439643,0.67100726,135.71,135.61,0.1]
[1720197440842,7.3712,135.67,135.57,0.8810062]
[1720197441158,21.5524,135.65,135.57,0.8810062]
[1720197441346,0.50100726,135.64,135.57,0.8810062]
[1720197442234,21.5524,135.65,135.57,0.8810062]
[1720197442424,0.50100726,135.64,135.57,0.8810062]
[1720197444158,0.50100726,135.64,135.51,0.1]
[1720197444348,0.17,135.63,135.51,0.1]
[1720197445337,0.50100726,135.64,135.51,5.6369586]
[1720197445653,22.05340726,135.65,135.55,100.0]
[1720197445855,21.5524,135.65,135.56,20.0]
[1720197446350,21.5524,135.65,135.57,200.17]
[1720197446564,21.5524,135.65,135.58,20.0]
[1720197446745,21.5524,135.65,135.59,0.17]
[1720197446920,21.5524,135.65,135.58,20.0]
[1720197447124,21.5524,135.65,135.57,0.17]
[1720197448051,0.50100726,135.64,135.55,105.4755221]
[1720197448245,0.50100726,135.64,135.55,100.0]
[1720197448431,0.50100726,135.64,135.51,0.1]
[1720197448634,21.9411,135.63,135.51,0.1]
[1720197449054,21.9411,135.63,135.52,100.0]
[1720197449237,21.9411,135.63,135.57,100.0]
[1720197449441,5.4416,135.67,135.59,100.0]
[1720197449630,0.50100726,135.77,135.61,100.0]
[1720197449830,0.50100726,135.8,135.62,100.0]
[1720197450149,0.50100726,135.79,135.64,100.0]
[1720197450326,0.50100726,135.79,135.65,20.17]
[1720197450523,0.50100726,135.83,135.66,200.0]
[1720197450722,18.4974,135.89,135.67,20.17]
[1720197450723,0.50100726,135.82,135.67,20.17]
[1720197451055,7.3611,135.85,135.68,100.0]
[1720197451237,0.50100726,135.84,135.69,20.17]
[1720197451439,26.11769278,135.89,135.69,20.17]
[1720197451758,7.3617,135.84,135.69,20.17]
[1720197452050,2.92715759,135.88,135.69,20.17]
[1720197452265,2.92715759,135.88,135.74,200.0]
[1720197452430,6.088,135.86,135.76,100.0]
[1720197452756,6.58900726,135.86,135.77,20.17]
[1720197452933,0.50100726,135.85,135.77,20.17]
[1720197453146,0.50100726,135.85,135.77,20.0]
[1720197453445,0.50100726,135.85,135.74,29.82]
[1720197453446,6.58900726,135.86,135.75,20.0]
[1720197453752,6.58900726,135.86,135.76,100.17]
[1720197453961,6.58900726,135.86,135.77,20.0]
[1720197454280,0.50100726,135.85,135.77,20.0]
[1720197454472,0.50100726,135.85,135.76,0.17]
[1720197454473,6.58900726,135.86,135.76,0.17]
[1720197454857,6.58900726,135.86,135.76,100.17]
[1720197455039,6.58900726,135.86,135.77,20.0]
[1720197455238,6.58900726,135.86,135.78,0.17]
[1720197455458,6.088,135.86,135.78,0.17]
[1720197455854,0.50100726,135.85,135.77,20.0]
[1720197456058,0.50100726,135.85,135.75,20.0]
[1720197456257,0.50100726,135.85,135.76,0.17]
[1720197456660,0.50100726,135.85,135.72,100.0]
[1720197456873,16.5731,135.84,135.7,12.8989413]
[1720197457047,7.3628,135.82,135.66,100.0]
[1720197457353,22.6769,135.8,135.66,105.65731123]
[1720197457749,22.6769,135.8,135.71,100.0]
[1720197457972,22.6769,135.8,135.73,100.0]
[1720197458270,22.6769,135.8,135.74,20.0]
[1720197458659,22.6769,135.8,135.71,100.0]
[1720197458660,22.6769,135.8,135.72,20.0]
[1720197459248,22.6769,135.8,135.71,20.0]
[1720197459455,22.6769,135.8,135.72,100.0]
[1720197459659,22.6769,135.8,135.76,100.0]
[1720197459843,22.6769,135.8,135.77,20.0]
[1720197460445,22.6769,135.8,135.78,0.17]
[1720197461273,22.6769,135.8,135.77,20.0]
[1720197461471,22.6769,135.8,135.75,5.4720224]
[1720197461472,22.6769,135.8,135.76,20.0]
[1720197461659,22.6769,135.8,135.77,0.17]
[1720197462056,22.6769,135.8,135.76,0.17]
[1720197463348,22.6769,135.8,135.74,5.62606131]
[1720197463571,22.6769,135.8,135.7,100.0]
[1720197463974,22.6769,135.8,135.68,200.0]
[1720197464359,22.6769,135.8,135.72,100.0]
[1720197464551,22.6769,135.8,135.68,5.53312702]
[1720197464552,22.6769,135.8,135.68,212.94999098]
[1720197465262,22.6769,135.8,135.7,100.0]
[1720197465855,22.6769,135.8,135.72,100.0]
[1720197466059,22.6769,135.8,135.73,20.17]
[1720197466471,22.6769,135.8,135.74,100.0]
[1720197466681,22.6769,135.8,135.76,100.0]
[1720197466866,22.6769,135.8,135.77,20.17]
[1720197467071,22.6769,135.8,135.75,20.0]
[1720197467385,22.6769,135.8,135.76,0.17]
[1720197467889,22.6769,135.8,135.72,20.0]
[1720197468057,22.6769,135.8,135.73,0.17]
[1720197468260,22.6769,135.8,135.72,100.17]
[1720197468464,22.6769,135.8,135.73,20.0]
[1720197468686,22.6769,135.8,135.74,0.17]
[1720197468882,22.6769,135.8,135.72,0.17]
[1720197469477,22.6769,135.8,135.73,100.0]
[1720197469684,22.6769,135.8,135.75,100.0]
[1720197469975,22.6769,135.8,135.76,20.17]
[1720197470185,22.6769,135.8,135.76,0.17]
[1720197470480,22.6769,135.8,135.68,7.41686396]
[1720197470669,0.50100726,135.79,135.68,7.41686396]
[1720197471696,22.6769,135.8,135.68,7.41686396]
[1720197471697,22.6769,135.8,135.73,100.0]
[1720197471864,22.6769,135.8,135.76,100.0]
[1720197472189,16.5731,135.8,135.77,20.0]
[1720197472481,6.4527,135.84,135.77,20.0]
[1720197472871,6.4527,135.84,135.76,20.17]
[1720197473179,6.95370726,135.84,135.76,0.17]
[1720197473383,6.95370726,135.84,135.75,20.0]
[1720197473959,15.2794,135.83,135.66,136.45]
[1720197474288,6.2137,135.8,135.66,36.45]
[1720197474578,6.0775,135.78,135.64,5.47273932]
[1720197474789,0.50100726,135.77,135.65,107.3632]
[1720197474952,0.50100726,135.77,135.65,7.3632]
[1720197475156,0.50100726,135.77,135.65,107.3632]
[1720197475792,6.57850726,135.78,135.67,100.0]
[1720197475965,6.57850726,135.78,135.68,20.0]
[1720197476365,6.0775,135.78,135.68,20.0]
[1720197476562,6.0775,135.78,135.69,100.0]
[1720197476768,6.0775,135.78,135.7,20.0]
[1720197477186,6.57850726,135.78,135.67,20.0]
[1720197477490,6.57850726,135.78,135.65,107.3632]
[1720197477491,6.57850726,135.78,135.68,0.17]
[1720197477693,6.57850726,135.78,135.67,0.17]
[1720197478796,6.57850726,135.78,135.62,100.0]
[1720197478797,16.0207,135.77,135.62,100.0]
[1720197478979,0.50100726,135.76,135.62,100.0]
[1720197479317,15.8507,135.74,135.62,5.71751971]
[1720197479500,0.67100726,135.73,135.6,100.0]
[1720197479665,0.67100726,135.73,135.59,36.45]
[1720197479666,0.50100726,135.73,135.62,200.0]
[1720197479979,0.50100726,135.73,135.62,100.0]
[1720197480298,16.35170726,135.74,135.62,200.0]
[1720197480594,15.8507,135.74,135.64,200.0]
[1720197480799,15.8507,135.74,135.66,100.0]
[1720197481298,15.8507,135.74,135.67,0.17]
[1720197481478,15.8507,135.74,135.67,20.17]
[1720197481682,15.8507,135.74,135.7,100.0]
[1720197481888,21.7205,135.79,135.72,200.0]
[1720197482200,21.7205,135.79,135.74,100.0]
[1720197482413,21.7205,135.79,135.75,20.0]
[1720197482566,21.7205,135.79,135.73,20.0]
[1720197482974,21.7205,135.79,135.71,20.0]
[1720197483176,0.50100726,135.78,135.64,100.0]
[1720197483575,0.50100726,135.78,135.64,5.71106686]
[1720197483795,30.02,135.77,135.62,100.0]
[1720197483978,0.50100726,135.76,135.62,100.0]
[1720197484185,0.50100726,135.76,135.64,100.0]
[1720197484496,22.6542,135.77,135.66,100.0]
[1720197485212,0.50100726,135.76,135.67,20.0]
[1720197485373,0.50100726,135.76,135.68,0.17]
[1720197485573,0.50100726,135.76,135.61,107.41686396]
[1720197485574,22.1862,135.75,135.61,107.41686396]
[1720197485807,0.67100726,135.74,135.6,36.51]
[1720197486018,22.9182,135.72,135.59,100.0]
[1720197486300,0.50100726,135.71,135.59,100.0]
[1720197486684,0.50100726,135.7,135.54,100.0]
[1720197486989,0.50100726,135.7,135.57,100.0]
[1720197487508,23.0882,135.69,135.57,100.0]
[1720197487692,0.50100726,135.68,135.57,100.0]
[1720197488005,22.9182,135.69,135.59,100.0]
[1720197489084,22.9182,135.69,135.6,0.17]
[1720197489290,22.9182,135.69,135.61,100.0]
[1720197489498,22.9182,135.69,135.62,0.17]
[1720197489685,22.9182,135.69,135.62,20.17]
[1720197490082,22.9182,135.69,135.56,100.0]
[1720197490300,0.50100726,135.68,135.57,20.0]
[1720197490602,0.50100726,135.68,135.55,20.0]
[1720197491097,0.50100726,135.67,135.57,100.0]
[1720197491301,22.9182,135.69,135.59,100.0]
[1720197491501,22.9182,135.69,135.59,200.0]
[1720197492009,22.9182,135.69,135.64,100.0]
[1720197492185,6.4138,135.73,135.66,100.0]
[1720197492381,6.4138,135.73,135.67,20.17]
[1720197492603,6.4138,135.73,135.68,100.0]
[1720197492813,15.3587,135.75,135.7,100.0]
[1720197493102,15.3587,135.75,135.71,20.17]
[1720197493286,15.3587,135.8,135.73,100.0]
[1720197493610,15.3587,135.8,135.71,20.17]
[1720197493611,15.3587,135.8,135.75,200.0]
[1720197493819,15.3587,135.8,135.76,20.17]
[1720197494117,15.3587,135.8,135.68,7.41686396]
[1720197494118,15.3587,135.8,135.7,100.0]
[1720197494296,15.3587,135.8,135.71,20.17]
[1720197494611,15.3587,135.8,135.71,220.17]
[1720197494810,0.50100726,135.79,135.66,100.0]
[1720197494988,0.50100726,135.79,135.61,200.0]
[1720197494989,6.5709,135.75,135.61,200.0]
[1720197495189,15.3544,135.73,135.59,36.51]
[1720197495403,0.50100726,135.72,135.59,136.51]
[1720197495711,0.50100726,135.72,135.6,100.0]
[1720197495903,0.50100726,135.72,135.62,100.0]
[1720197496219,0.50100726,135.72,135.59,136.51]
[1720197496390,0.50100726,135.72,135.62,100.0]
[1720197496601,0.50100726,135.72,135.57,107.41686396]
[1720197496788,6.4645,135.7,135.57,100.0]
[1720197497122,6.4645,135.7,135.61,100.0]
[1720197497485,6.4645,135.7,135.59,100.0]
[1720197497997,0.50100726,135.69,135.57,107.41686396]
[1720197498199,6.4645,135.7,135.61,100.0]
[1720197498810,6.4645,135.7,135.63,100.0]
[1720197499210,6.4645,135.7,135.64,20.0]
[1720197499412,6.4645,135.7,135.61,20.0]
[1720197499611,6.4645,135.7,135.62,0.17]
[1720197500698,0.50100726,135.69,135.57,7.41686396]
[1720197500910,16.424,135.68,135.56,100.0]
[1720197501100,0.50100726,135.67,135.56,100.0]
[1720197501502,16.424,135.68,135.61,100.0]
[1720197502114,16.424,135.68,135.63,100.0]
[1720197502820,16.424,135.68,135.64,20.17]
[1720197503325,16.424,135.68,135.65,20.0]
[1720197503514,16.424,135.68,135.63,1.4701554]
[1720197503719,16.424,135.68,135.62,20.17]
[1720197504021,16.424,135.68,135.63,0.17]
[1720197504627,16.424,135.68,135.59,20.0]
[1720197504816,0.50100726,135.67,135.56,7.41686396]
[1720197505003,16.92500726,135.68,135.57,100.0]
[1720197505203,0.50100726,135.67,135.54,107.41686396]
[1720197505808,0.50100726,135.67,135.56,100.0]
[1720197506211,0.50100726,135.67,135.54,7.41686396]
[1720197506212,16.424,135.68,135.6,100.0]
[1720197506410,16.424,135.68,135.54,7.41686396]
[1720197506411,0.50100726,135.67,135.54,207.41686396]
[1720197506610,16.92500726,135.68,135.57,100.0]
[1720197506920,0.50100726,135.67,135.57,100.0]
[1720197507119,0.50100726,135.67,135.58,0.17]
[1720197507500,16.92500726,135.68,135.58,20.17]
[1720197508007,0.50100726,135.67,135.58,20.17]
[1720197508329,0.50100726,135.67,135.59,20.0]
[1720197508514,6.5022,135.66,135.58,0.17]
[1720197509218,6.5022,135.66,135.56,20.0]
[1720197509219,6.5022,135.66,135.57,0.17]
[1720197509611,6.1801,135.63,135.51,0.1]
[1720197509809,0.67100726,135.62,135.51,0.1]
[1720197510023,6.68110726,135.63,135.51,0.1]
[1720197510340,6.1801,135.63,135.54,100.0]
[1720197510628,6.1801,135.63,135.57,100.0]
[1720197510920,6.1801,135.63,135.54,36.51]
[1720197511121,6.68110726,135.63,135.54,36.51]
[1720197511327,6.68110726,135.63,135.55,0.17]
[1720197511632,6.68110726,135.63,135.51,0.1]
[1720197511940,6.68110726,135.63,135.51,100.1]
[1720197512236,6.68110726,135.63,135.51,0.1]
[1720197512410,6.1801,135.63,135.55,100.0]
[1720197512932,6.1801,135.63,135.57,100.0]
[1720197513243,6.1801,135.63,135.51,0.1]
[1720197514331,0.17,135.62,135.51,0.1]
[1720197514524,6.1453,135.61,135.51,0.1]
[1720197514702,0.50100726,135.6,135.51,0.1]
[1720197515103,23.6273,135.57,135.44,355.76467016]
[1720197515311,6.1453,135.55,135.44,0.8810062]
[1720197515615,0.50100726,135.54,135.44,0.8810062]
[1720197516331,0.50100726,135.54,135.44,100.8810062]
[1720197516502,0.50100726,135.54,135.44,0.8810062]
[1720197516924,6.64630726,135.55,135.44,100.8810062]
[1720197517116,6.1453,135.55,135.48,100.0]
[1720197517321,6.1453,135.55,135.46,100.0]
[1720197517622,6.1453,135.55,135.44,200.8810062]
[1720197517835,6.1453,135.55,135.44,0.8810062]
[1720197517999,0.50100726,135.54,135.44,0.8810062]
[1720197518322,6.1453,135.55,135.46,100.0]
[1720197518499,6.1453,135.55,135.47,20.0]
[1720197519415,6.1453,135.55,135.48,0.17]
[1720197519732,5.6339,135.55,135.5,200.0]
[1720197519932,15.4478,135.62,135.51,20.17]
[1720197520112,15.4478,135.62,135.51,120.17]
[1720197520449,0.50100726,135.61,135.5,354.88366396]
[1720197521303,0.17,135.6,135.47,100.0]
[1720197521606,16.3402,135.59,135.44,355.76467016]
[1720197521806,0.67100726,135.58,135.44,100.8810062]
[1720197522202,0.67100726,135.58,135.44,0.8810062]
[1720197522617,0.67100726,135.58,135.44,20.8810062]
[1720197522817,6.2996,135.57,135.44,20.8810062]
[1720197523020,0.67100726,135.56,135.44,20.8810062]
[1720197523222,0.50100726,135.56,135.44,20.8810062]
[1720197523447,6.80060726,135.57,135.45,100.0]
[1720197523609,6.2996,135.57,135.47,200.0]
[1720197523808,6.2996,135.57,135.49,100.0]
[1720197524039,6.2996,135.57,135.5,20.0]
[1720197524208,6.2996,135.57,135.51,0.17]
[1720197524617,6.2996,135.57,135.5,20.17]
[1720197525040,6.2996,135.57,135.5,120.17]
[1720197525222,6.2996,135.57,135.5,20.17]
[1720197525421,6.2996,135.57,135.5,120.17]
[1720197525620,6.2996,135.57,135.52,100.0]
[1720197525829,6.2996,135.57,135.53,20.17]
[1720197526129,6.2996,135.57,135.53,0.17]
[1720197526335,6.2996,135.57,135.54,20.0]
[1720197526514,6.2996,135.57,135.5,20.0]
[1720197526716,6.2996,135.57,135.51,0.17]
[1720197527245,6.2996,135.57,135.51,100.0]
[1720197527418,6.2996,135.57,135.5,0.17]
[1720197527949,6.2996,135.57,135.5,100.17]
[1720197528236,6.2996,135.57,135.51,20.0]
[1720197528417,6.2996,135.57,135.52,0.17]
[1720197529229,6.2996,135.57,135.51,0.17]
[1720197529447,6.2996,135.57,135.51,100.17]
[1720197529643,6.2996,135.57,135.53,100.0]
[1720197529927,6.2996,135.57,135.54,20.17]
[1720197530131,6.2996,135.57,135.54,0.17]
[1720197530332,6.2996,135.57,135.55,20.0]
[1720197530521,6.2996,135.57,135.53,100.17]
[1720197530726,6.2996,135.57,135.54,20.0]
[1720197531215,6.2996,135.57,135.52,20.0]
[1720197531411,6.2996,135.57,135.53,100.0]
[1720197531625,6.2996,135.57,135.54,20.0]
[1720197531873,22.4188,135.67,135.54,20.0]
[1720197532158,6.2138,135.66,135.54,20.0]
[1720197532445,0.50100726,135.65,135.55,0.17]
[1720197532625,0.50100726,135.64,135.55,0.17]
[1720197533233,0.50100726,135.65,135.55,455.05366396]
[1720197533433,0.50100726,135.65,135.56,20.0]
[1720197533615,0.50100726,135.64,135.56,20.0]
[1720197534030,0.50100726,135.64,135.54,20.0]
[1720197534253,0.50100726,135.64,135.55,100.0]
[1720197534543,0.50100726,135.64,135.56,20.0]
[1720197534745,0.50100726,135.65,135.56,20.0]
[1720197534919,0.50100726,135.65,135.57,0.17]
[1720197535120,0.50100726,135.65,135.55,20.0]
[1720197535319,0.50100726,135.65,135.56,0.17]
[1720197535555,15.791,135.63,135.5,354.88366396]
[1720197535758,6.69200726,135.62,135.5,354.88366396]
[1720197535958,6.86200726,135.62,135.5,354.88366396]
[1720197536247,6.86200726,135.62,135.47,5.67517082]
[1720197536447,14.23560726,135.62,135.45,391.39366396]
[1720197536744,14.23590726,135.62,135.45,391.39366396]
[1720197537044,6.5628,135.61,135.45,396.98821195]
[1720197537238,0.50100726,135.6,135.45,396.98821195]
[1720197537441,0.67100726,135.6,135.45,396.98821195]
[1720197538147,15.5922,135.58,135.45,496.98821195]
[1720197538348,15.5922,135.58,135.48,100.0]
[1720197538524,0.50100726,135.57,135.46,100.0]
[1720197539141,16.09320726,135.58,135.48,100.0]
[1720197539343,0.50100726,135.57,135.49,0.17]
[1720197539549,0.50100726,135.57,135.48,0.17]
[1720197539753,0.50100726,135.57,135.45,360.47821195]
[1720197540423,16.09320726,135.58,135.46,200.0]
[1720197540622,0.50100726,135.57,135.46,100.0]
[1720197540923,15.5922,135.58,135.48,200.0]
[1720197541128,15.5922,135.58,135.46,129.95]
[1720197541337,15.5922,135.58,135.5,100.0]
[1720197541519,15.5922,135.58,135.51,20.0]
[1720197541723,16.2867,135.62,135.54,100.0]
[1720197542025,6.5911,135.63,135.58,100.0]
[1720197542226,6.5911,135.63,135.59,20.0]
[1720197542445,6.5911,135.63,135.6,0.17]
[1720197542744,6.5911,135.63,135.59,20.0]
[1720197542745,0.50100726,135.65,135.59,374.88366396]
[1720197543118,22.7153,135.66,135.59,374.88366396]
[1720197543329,0.50100726,135.65,135.59,374.88366396]
[1720197543548,22.7153,135.66,135.59,374.88366396]
[1720197545637,0.50100726,135.65,135.59,374.88366396]
[1720197545855,20.21972078,135.66,135.59,354.88366396]
[1720197546239,0.17,135.65,135.59,354.88366396]
[1720197546425,7.3746,135.6,135.47,454.88366396]
[1720197546627,13.5375,135.62,135.47,454.88366396]
[1720197546926,6.164,135.6,135.47,354.88366396]
[1720197547132,6.334,135.59,135.47,354.88366396]
[1720197547355,6.3113,135.57,135.44,0.8810062]
[1720197547650,6.3113,135.56,135.44,0.8810062]
[1720197547855,0.17,135.55,135.44,0.8810062]
[1720197548525,13.4144,135.54,135.44,0.8810062]
[1720197548728,16.2959,135.52,135.44,0.8810062]
[1720197548941,0.17,135.51,135.44,0.8810062]
[1720197549747,16.2959,135.52,135.44,0.8810062]
[1720197551140,0.17,135.51,135.44,0.8810062]
[1720197552252,16.2959,135.52,135.44,0.8810062]
[1720197553151,23.6749,135.52,135.44,0.8810062]
[1720197553339,0.17,135.51,135.44,0.8810062]
[1720197553762,16.2959,135.52,135.44,0.8810062]
[1720197553970,6.0361,135.54,135.45,100.0]
[1720197554262,6.0294,135.59,135.52,100.0]
[1720197554445,6.0294,135.59,135.53,20.17]
[1720197555264,6.0294,135.59,135.53,20.0]
[1720197559279,6.0294,135.59,135.54,100.0]
[1720197559450,6.0294,135.59,135.55,20.0]
[1720197559656,6.0294,135.59,135.53,20.0]
[1720197559863,6.0294,135.59,135.54,0.17]
[1720197560154,6.0955,135.65,135.54,0.17]
[1720197560348,6.0955,135.65,135.54,355.05366396]
[1720197560558,6.0955,135.65,135.55,20.0]
[1720197560860,6.0955,135.65,135.56,0.17]
[1720197561443,6.0955,135.65,135.58,100.0]
[1720197561649,6.0955,135.65,135.59,20.17]
[1720197562049,6.0955,135.65,135.59,20.0]
[1720197562253,15.6112,135.69,135.59,20.0]
[1720197562450,15.6112,135.69,135.6,0.17]
[1720197562652,15.6112,135.69,135.61,200.0]
[1720197562860,15.6112,135.69,135.62,20.17]
[1720197563865,6.2512,135.74,135.65,100.0]
[1720197564076,6.2512,135.74,135.66,20.17]
[1720197564253,6.2512,135.74,135.67,100.0]
[1720197564448,6.2512,135.74,135.68,20.17]
[1720197564660,6.3512,135.79,135.71,100.0]
[1720197564981,6.3512,135.79,135.73,100.0]
[1720197564982,0.1,135.79,135.73,100.0]
[1720197565144,0.1,135.79,135.74,20.17]
[1720197568250,0.1,135.79,135.74,20.0]
[1720197568559,0.1,135.79,135.7,354.88366396]
[1720197568943,0.1,135.79,135.71,100.0]
[1720197569460,0.1,135.79,135.7,354.88366396]
[1720197569751,0.1,135.79,135.71,100.0]
[1720197570646,0.1,135.79,135.72,20.0]
[1720197570847,0.1,135.79,135.7,454.88366396]
[1720197571359,0.1,135.79,135.71,0.17]
[1720197571546,0.1,135.79,135.72,100.0]
[1720197571743,0.1,135.79,135.73,0.17]
[1720197572469,0.1,135.79,135.73,20.17]
[1720197573353,0.1,135.79,135.73,0.17]
[1720197574158,0.1,135.79,135.72,27.62293119]
[1720197574357,0.1,135.79,135.7,454.88366396]
[1720197574358,16.065,135.79,135.7,100.0]
[1720197574565,23.4294,135.79,135.66,354.88366396]
[1720197574772,23.4294,135.79,135.66,360.5920092]
[1720197574773,0.17,135.78,135.66,360.5920092]
[1720197574957,16.065,135.79,135.67,7.6224097]
[1720197575267,16.065,135.79,135.67,107.6224097]
[1720197575473,16.065,135.79,135.7,100.0]
[1720197575674,16.065,135.79,135.72,100.0]
[1720197576051,16.065,135.79,135.73,20.0]
[1720197576257,6.0854,135.78,135.71,20.0]
[1720197577178,6.0854,135.78,135.7,354.88366396]
[1720197577887,0.17,135.77,135.67,7.6224097]
[1720197578067,0.17,135.77,135.63,591.43366396]
[1720197578068,7.5357,135.77,135.63,591.43366396]
[1720197578266,0.17,135.77,135.65,7.62300435]
[1720197578591,6.0458,135.7,135.63,354.88366396]
[1720197578759,6.0458,135.7,135.58,454.88366396]
[1720197579251,6.0458,135.7,135.6,100.0]
[1720197580087,6.0458,135.7,135.59,7.625407]
[1720197580088,6.0458,135.7,135.62,100.0]
[1720197580263,6.0458,135.7,135.63,20.0]
[1720197580456,6.0458,135.7,135.64,100.0]
[1720197580670,6.0458,135.7,135.65,20.0]
[1720197581067,6.0458,135.7,135.6,200.0]
[1720197581271,6.0458,135.7,135.61,20.17]
[1720197581586,6.0458,135.7,135.61,20.0]
[1720197582410,6.0458,135.7,135.59,7.625407]
[1720197582573,0.17,135.69,135.57,454.88366396]
[1720197582772,0.17,135.69,135.57,100.0]
[1720197582997,7.5398,135.69,135.57,107.62578227]
[1720197583177,7.5399,135.69,135.57,107.62578227]
[1720197583380,7.5399,135.69,135.57,100.0]
[1720197583590,7.5399,135.69,135.55,100.0]
[1720197583591,7.3703,135.68,135.55,100.0]
[1720197583798,0.17,135.67,135.53,809.88366396]
[1720197583977,0.17,135.67,135.55,7.62859317]
[1720197584178,0.17,135.67,135.56,20.0]
[1720197584423,0.17,135.68,135.56,20.0]
[1720197585109,0.17,135.68,135.55,7.62859317]
[1720197585110,6.1575,135.67,135.55,7.62859317]
[1720197585403,6.1575,135.67,135.53,609.88366396]
[1720197585404,7.5415,135.66,135.53,609.88366396]
[1720197585603,7.3726,135.64,135.53,609.88366396]
[1720197585806,0.17,135.63,135.53,609.88366396]
[1720197586096,13.5286,135.67,135.53,107.62692118]
[1720197586300,7.5415,135.66,135.53,107.62692118]
[1720197586483,0.17,135.66,135.55,100.0]
[1720197586682,0.17,135.66,135.56,20.0]
[1720197586887,0.17,135.66,135.56,20.17]
[1720197587196,0.17,135.66,135.56,20.0]
[1720197587374,0.17,135.66,135.54,20.0]
[1720197587781,7.5413,135.66,135.54,20.0]
[1720197588400,0.17,135.66,135.54,20.0]
[1720197588880,0.17,135.66,135.55,0.17]
[1720197589297,7.5414,135.66,135.54,20.0]
[1720197589475,7.3719,135.65,135.54,20.0]
[1720197589682,30.2792,135.63,135.53,7.62692118]
[1720197589983,7.5439,135.62,135.49,354.88366396]
[1720197590182,7.5439,135.62,135.49,362.5864527]
[1720197590799,7.3743,135.61,135.49,362.5864527]
[1720197591001,0.17,135.6,135.49,362.5864527]
[1720197591691,7.5441,135.61,135.49,362.5864527]
[1720197592091,0.17,135.61,135.49,362.5864527]
[1720197592291,7.5443,135.61,135.49,362.5864527]
[1720197592501,6.3832,135.6,135.49,362.5864527]
[1720197592679,0.17,135.59,135.5,20.0]
[1720197593291,0.17,135.59,135.49,7.70278874]